[Event "Titled Tuesday Blitz August 02 Early 2022"]
[White "Chigaev, Maksim"]
[Black "Domingo Nunez, Ruben"]
[WhiteFideId "4108116"]
[BlackFideId "22245570"]
[WhiteElo "2438"]
[BlackElo "2373"]
[Result "1-0"]
[Round "03"]
[TimeControl "180+1"]
[Date "2022.08.02"]
[WhiteClock "0:00:09"]
[BlackClock "0:00:07"]

1. Nf3 {[%clk 0:03:00]}  g6 {[%clk 0:02:59]} 2. g3 {[%clk 0:03:00]}  Bg7 {[%clk 0:03:00]} 3. Bg2 {[%clk 0:03:01]}  Nf6 {[%clk 0:03:01]} 4. O-O {[%clk 0:03:01]}  O-O {[%clk 0:03:01]} 5. d3 {[%clk 0:03:02]}  c5 {[%clk 0:03:02]} 6. e4 {[%clk 0:03:02]}  Nc6 {[%clk 0:03:02]} 7. Re1 {[%clk 0:03:02]}  Ne8 {[%clk 0:03:03]} 8. a4 {[%clk 0:03:01]}  e5 {[%clk 0:03:02]} 9. Na3 {[%clk 0:03:01]}  d6 {[%clk 0:03:03]} 10. Nc4 {[%clk 0:03:01]}  Nc7 {[%clk 0:03:03]} 11. c3 {[%clk 0:03:02]}  Bg4 {[%clk 0:03:03]} 12. h3 {[%clk 0:03:02]}  Be6 {[%clk 0:03:03]} 13. Nfd2 {[%clk 0:03:01]}  a6 {[%clk 0:02:55]} 14. a5 {[%clk 0:03:00]}  f5 {[%clk 0:02:51]} 15. exf5 {[%clk 0:02:54]}  Bxf5 {[%clk 0:02:43]} 16. Qb3 {[%clk 0:02:41]}  d5 {[%clk 0:02:24]} 17. Qxb7 {[%clk 0:02:32]}  Bd7 {[%clk 0:02:17]} 18. Nb6 {[%clk 0:02:08]}  Rb8 {[%clk 0:02:16]} 19. Bxd5+ {[%clk 0:02:08]}  Kh8 {[%clk 0:02:09]} 20. Qxc6 {[%clk 0:01:59]}  Bxc6 {[%clk 0:02:07]} 21. Bxc6 {[%clk 0:02:00]}  Qxd3 {[%clk 0:01:13]} 22. Be4 {[%clk 0:01:46]}  Qd6 {[%clk 0:00:56]} 23. Ndc4 {[%clk 0:01:25]}  Qe6 {[%clk 0:00:56]} 24. Kg2 {[%clk 0:01:20]}  Ne8 {[%clk 0:00:56]} 25. Bg5 {[%clk 0:00:50]}  h6 {[%clk 0:00:31]} 26. Be3 {[%clk 0:00:50]}  Nf6 {[%clk 0:00:32]} 27. Bxg6 {[%clk 0:00:50]}  e4 {[%clk 0:00:25]} 28. Bf4 {[%clk 0:00:30]}  Rbd8 {[%clk 0:00:22]} 29. Be5 {[%clk 0:00:26]}  Ng4 {[%clk 0:00:14]} 30. Bxg7+ {[%clk 0:00:17]}  Kxg7 {[%clk 0:00:15]} 31. Rxe4 {[%clk 0:00:18]}  Qc6 {[%clk 0:00:05]} 32. hxg4 {[%clk 0:00:15]}  Rde8 {[%clk 0:00:02]} 33. Re1 {[%clk 0:00:08]}  Kxg6 {[%clk 0:00:02]} 34. f3 {[%clk 0:00:06]}  Rxe4 {[%clk 0:00:03]} 35. Rxe4 {[%clk 0:00:06]}  Qb5 {[%clk 0:00:02]} 36. Re6+ {[%clk 0:00:06]}  Kg7 {[%clk 0:00:02]} 37. Re2 {[%clk 0:00:07]}  Qb3 {[%clk 0:00:02]} 38. Rf2 {[%clk 0:00:07]}  Qd1 {[%clk 0:00:03]} 39. Ne3 {[%clk 0:00:04]}  Qe1 {[%clk 0:00:03]} 40. Nf5+ {[%clk 0:00:04]}  Kh7 {[%clk 0:00:03]} 41. Nc4 {[%clk 0:00:05]}  Rd8 {[%clk 0:00:03]} 42. Nce3 {[%clk 0:00:05]}  Rd2 {[%clk 0:00:03]} 43. Rxd2 {[%clk 0:00:05]}  Qxd2+ {[%clk 0:00:04]} 44. Kh3 {[%clk 0:00:06]}  Qxb2 {[%clk 0:00:05]} 45. f4 {[%clk 0:00:07]}  Qxc3 {[%clk 0:00:05]} 46. Kh4 {[%clk 0:00:07]}  Qf6+ {[%clk 0:00:05]} 47. g5 {[%clk 0:00:07]}  hxg5+ {[%clk 0:00:05]} 48. fxg5 {[%clk 0:00:08]}  Qg6 {[%clk 0:00:05]} 49. g4 {[%clk 0:00:09]}  Qe6 {[%clk 0:00:05]} 50. Ng2 {[%clk 0:00:07]}  c4 {[%clk 0:00:05]} 51. Nf4 {[%clk 0:00:07]}  Qe5 {[%clk 0:00:02]} 52. g6+ {[%clk 0:00:06]}  Kg8 {[%clk 0:00:03]} 53. Nh5 {[%clk 0:00:05]}  Qh2+ {[%clk 0:00:02]} 54. Kg5 {[%clk 0:00:06]}  Qd2+ {[%clk 0:00:03]} 55. Kf6 {[%clk 0:00:06]}  Qd8+ {[%clk 0:00:03]} 56. Ke6 {[%clk 0:00:06]}  c3 {[%clk 0:00:04]} 57. Nf6+ {[%clk 0:00:06]}  Qxf6+ {[%clk 0:00:04]} 58. Kxf6 {[%clk 0:00:06]}  c2 {[%clk 0:00:05]} 59. g7 {[%clk 0:00:07]}  c1=Q {[%clk 0:00:05]} 60. Ne7+ {[%clk 0:00:07]}  Kh7 {[%clk 0:00:06]} 61. g8=Q+ {[%clk 0:00:08]}  Kh6 {[%clk 0:00:07]} 62. Qg6# {[%clk 0:00:09]} 1-0


[Site "https://www.chess.com"]

[Event "Titled Tuesday Blitz August 02 Early 2022"]
[White "Concio, Michael Jr."]
[Black "Seo, Jung Min"]
[WhiteFideId "5217873"]
[BlackFideId "1734687"]
[WhiteElo "1896"]
[BlackElo "2414"]
[Result "1-0"]
[Round "03"]
[TimeControl "180+1"]
[Date "2022.08.02"]
[WhiteClock "0:00:06"]
[BlackClock "0:01:15"]

1. e4 {[%clk 0:03:00]}  c5 {[%clk 0:03:00]} 2. Nc3 {[%clk 0:02:59]}  d6 {[%clk 0:02:58]} 3. g3 {[%clk 0:02:59]}  g6 {[%clk 0:02:58]} 4. Bg2 {[%clk 0:02:59]}  Bg7 {[%clk 0:02:59]} 5. Nge2 {[%clk 0:03:00]}  Nc6 {[%clk 0:02:59]} 6. O-O {[%clk 0:03:00]}  e6 {[%clk 0:02:57]} 7. d3 {[%clk 0:03:00]}  Nge7 {[%clk 0:02:57]} 8. Be3 {[%clk 0:02:59]}  Nd4 {[%clk 0:02:55]} 9. Qd2 {[%clk 0:02:59]}  O-O {[%clk 0:02:55]} 10. Rae1 {[%clk 0:02:55]}  Rb8 {[%clk 0:02:55]} 11. Nd1 {[%clk 0:02:56]}  b5 {[%clk 0:02:54]} 12. c3 {[%clk 0:02:56]}  Nxe2+ {[%clk 0:02:54]} 13. Rxe2 {[%clk 0:02:57]}  b4 {[%clk 0:02:54]} 14. c4 {[%clk 0:02:36]}  Nc6 {[%clk 0:02:53]} 15. f4 {[%clk 0:02:02]}  Nd4 {[%clk 0:02:53]} 16. Ref2 {[%clk 0:02:01]}  f5 {[%clk 0:02:51]} 17. h3 {[%clk 0:01:59]}  Bb7 {[%clk 0:02:47]} 18. Kh2 {[%clk 0:01:56]}  a5 {[%clk 0:02:46]} 19. exf5 {[%clk 0:01:43]}  Nxf5 {[%clk 0:02:41]} 20. Bxb7 {[%clk 0:01:42]}  Rxb7 {[%clk 0:02:38]} 21. Re2 {[%clk 0:01:38]}  Nxe3 {[%clk 0:02:37]} 22. Qxe3 {[%clk 0:01:39]}  e5 {[%clk 0:02:36]} 23. Ref2 {[%clk 0:01:34]}  Rbf7 {[%clk 0:02:30]} 24. fxe5 {[%clk 0:01:21]}  Rxf2+ {[%clk 0:02:24]} 25. Rxf2 {[%clk 0:01:22]}  Rxf2+ {[%clk 0:02:24]} 26. Nxf2 {[%clk 0:01:21]}  Bxe5 {[%clk 0:02:24]} 27. b3 {[%clk 0:01:18]}  Bd4 {[%clk 0:02:23]} 28. Qe6+ {[%clk 0:01:16]}  Kg7 {[%clk 0:02:23]} 29. Ne4 {[%clk 0:01:14]}  Be5 {[%clk 0:02:23]} 30. Kg2 {[%clk 0:01:12]}  Qc7 {[%clk 0:02:18]} 31. h4 {[%clk 0:01:05]}  h6 {[%clk 0:02:13]} 32. Qe8 {[%clk 0:00:54]}  Qf7 {[%clk 0:02:07]} 33. Qxf7+ {[%clk 0:00:38]}  Kxf7 {[%clk 0:02:07]} 34. Kf3 {[%clk 0:00:33]}  Ke6 {[%clk 0:02:07]} 35. g4 {[%clk 0:00:30]}  Bd4 {[%clk 0:01:58]} 36. Ng3 {[%clk 0:00:18]}  d5 {[%clk 0:01:53]} 37. h5 {[%clk 0:00:17]}  gxh5 {[%clk 0:01:53]} 38. Nxh5 {[%clk 0:00:07]}  Be5 {[%clk 0:01:52]} 39. Nf4+ {[%clk 0:00:05]}  Kd6 {[%clk 0:01:32]} 40. Nxd5 {[%clk 0:00:05]}  Bb2 {[%clk 0:01:26]} 41. Ke4 {[%clk 0:00:06]}  Ke6 {[%clk 0:01:25]} 42. Nf4+ {[%clk 0:00:05]}  Kf6 {[%clk 0:01:22]} 43. Nh5+ {[%clk 0:00:06]}  Kg5 {[%clk 0:01:22]} 44. Kf3 {[%clk 0:00:06]}  Bd4 {[%clk 0:01:18]} 45. Nf4 {[%clk 0:00:06]}  Bg1 {[%clk 0:01:15]} 46. Nh3+ {[%clk 0:00:06]} 1-0


[Site "https://www.chess.com"]

[Event "Titled Tuesday Blitz August 02 Early 2022"]
[White "Csonka, Balazs"]
[Black "Fedoseev, Vladimir"]
[WhiteFideId "742910"]
[BlackFideId "24130737"]
[WhiteElo "2404"]
[BlackElo "2726"]
[Result "0-1"]
[Round "03"]
[TimeControl "180+1"]
[Date "2022.08.02"]
[WhiteClock "0:00:02"]
[BlackClock "0:00:25"]

1. d4 {[%clk 0:03:00]}  Nf6 {[%clk 0:02:59]} 2. c4 {[%clk 0:02:58]}  e6 {[%clk 0:02:59]} 3. Nf3 {[%clk 0:02:58]}  d5 {[%clk 0:02:57]} 4. Nc3 {[%clk 0:02:58]}  h6 {[%clk 0:02:56]} 5. e3 {[%clk 0:02:47]}  Nbd7 {[%clk 0:02:52]} 6. b3 {[%clk 0:02:46]}  b6 {[%clk 0:02:47]} 7. cxd5 {[%clk 0:02:37]}  Bb4 {[%clk 0:02:39]} 8. Bd2 {[%clk 0:02:32]}  Bxc3 {[%clk 0:02:38]} 9. Bxc3 {[%clk 0:02:32]}  Nxd5 {[%clk 0:02:39]} 10. Bb2 {[%clk 0:02:27]}  Bb7 {[%clk 0:02:39]} 11. Bd3 {[%clk 0:02:22]}  O-O {[%clk 0:02:38]} 12. O-O {[%clk 0:02:22]}  c5 {[%clk 0:02:32]} 13. Rc1 {[%clk 0:02:09]}  Rc8 {[%clk 0:02:29]} 14. Re1 {[%clk 0:02:04]}  Qe7 {[%clk 0:02:18]} 15. Bb1 {[%clk 0:01:18]}  Rfd8 {[%clk 0:02:13]} 16. e4 {[%clk 0:01:04]}  N5f6 {[%clk 0:02:05]} 17. d5 {[%clk 0:01:01]}  exd5 {[%clk 0:01:57]} 18. exd5 {[%clk 0:01:01]}  Qd6 {[%clk 0:01:57]} 19. Nh4 {[%clk 0:00:48]}  Qxd5 {[%clk 0:01:44]} 20. Qxd5 {[%clk 0:00:44]}  Bxd5 {[%clk 0:01:45]} 21. Nf5 {[%clk 0:00:38]}  Kf8 {[%clk 0:01:44]} 22. Ne7 {[%clk 0:00:26]}  Rb8 {[%clk 0:01:41]} 23. Rcd1 {[%clk 0:00:12]}  Re8 {[%clk 0:01:30]} 24. Nxd5 {[%clk 0:00:10]}  Rxe1+ {[%clk 0:01:30]} 25. Rxe1 {[%clk 0:00:11]}  Nxd5 {[%clk 0:01:30]} 26. Rd1 {[%clk 0:00:11]}  N7f6 {[%clk 0:01:30]} 27. f3 {[%clk 0:00:08]}  Re8 {[%clk 0:01:20]} 28. Kf2 {[%clk 0:00:08]}  Nf4 {[%clk 0:01:16]} 29. Rd2 {[%clk 0:00:07]}  Ne6 {[%clk 0:01:11]} 30. Bf5 {[%clk 0:00:03]}  Rd8 {[%clk 0:01:09]} 31. Rxd8+ {[%clk 0:00:03]}  Nxd8 {[%clk 0:01:10]} 32. Ke3 {[%clk 0:00:03]}  Ke7 {[%clk 0:01:07]} 33. g4 {[%clk 0:00:03]}  Nc6 {[%clk 0:01:05]} 34. h4 {[%clk 0:00:02]}  g6 {[%clk 0:01:01]} 35. Bb1 {[%clk 0:00:03]}  Nd5+ {[%clk 0:00:59]} 36. Kf2 {[%clk 0:00:03]}  Nd4 {[%clk 0:00:56]} 37. g5 {[%clk 0:00:02]}  hxg5 {[%clk 0:00:55]} 38. hxg5 {[%clk 0:00:03]}  Ke6 {[%clk 0:00:55]} 39. Be4 {[%clk 0:00:04]}  Ke5 {[%clk 0:00:53]} 40. Kg3 {[%clk 0:00:01]}  Ne3 {[%clk 0:00:49]} 41. Bb7 {[%clk 0:00:02]}  Nd1 {[%clk 0:00:37]} 42. f4+ {[%clk 0:00:02]}  Ke6 {[%clk 0:00:36]} 43. Bxd4 {[%clk 0:00:02]}  cxd4 {[%clk 0:00:35]} 44. Kf3 {[%clk 0:00:03]}  Nc3 {[%clk 0:00:34]} 45. a3 {[%clk 0:00:03]}  Kd6 {[%clk 0:00:28]} 46. Bc8 {[%clk 0:00:03]}  d3 {[%clk 0:00:26]} 47. Ke3 {[%clk 0:00:03]}  Nd5+ {[%clk 0:00:27]} 48. Kxd3 {[%clk 0:00:03]}  Nxf4+ {[%clk 0:00:28]} 49. Kc4 {[%clk 0:00:03]}  Ne6 {[%clk 0:00:29]} 50. Kb5 {[%clk 0:00:02]}  Nxg5 {[%clk 0:00:24]} 51. Ka6 {[%clk 0:00:02]}  Kc7 {[%clk 0:00:25]} 52. Bb7 {[%clk 0:00:02]}  Kb8 {[%clk 0:00:25]} 53. Bd5 {[%clk 0:00:02]}  Ne6 {[%clk 0:00:26]} 54. b4 {[%clk 0:00:02]}  Nc7# {[%clk 0:00:25]} 0-1


[Site "https://www.chess.com"]

[Event "Titled Tuesday Blitz August 02 Early 2022"]
[White "Dimitrov, Atanas"]
[Black "Harmon-Vellotti, Luke"]
[WhiteFideId "2901315"]
[BlackFideId "2030012"]
[WhiteElo "2674"]
[BlackElo "2354"]
[Result "0-1"]
[Round "03"]
[TimeControl "180+1"]
[Date "2022.08.02"]
[WhiteClock "0:00:25"]
[BlackClock "0:00:21"]

1. Nf3 {[%clk 0:03:00]}  Nf6 {[%clk 0:02:59]} 2. c4 {[%clk 0:03:01]}  e6 {[%clk 0:03:00]} 3. Nc3 {[%clk 0:03:01]}  b6 {[%clk 0:02:58]} 4. g3 {[%clk 0:02:58]}  Bb7 {[%clk 0:02:58]} 5. Bg2 {[%clk 0:02:59]}  Be7 {[%clk 0:02:59]} 6. O-O {[%clk 0:02:59]}  O-O {[%clk 0:02:59]} 7. b3 {[%clk 0:03:00]}  d5 {[%clk 0:02:58]} 8. cxd5 {[%clk 0:03:00]}  exd5 {[%clk 0:02:58]} 9. d4 {[%clk 0:02:59]}  Nbd7 {[%clk 0:02:58]} 10. Bb2 {[%clk 0:02:59]}  a6 {[%clk 0:02:58]} 11. Rc1 {[%clk 0:02:59]}  Bd6 {[%clk 0:02:58]} 12. Qc2 {[%clk 0:02:55]}  Re8 {[%clk 0:02:58]} 13. e3 {[%clk 0:02:54]}  Qe7 {[%clk 0:02:56]} 14. Rfd1 {[%clk 0:02:54]}  Rac8 {[%clk 0:02:55]} 15. Ne2 {[%clk 0:02:51]}  h6 {[%clk 0:02:37]} 16. Nh4 {[%clk 0:02:48]}  g6 {[%clk 0:02:21]} 17. Qd3 {[%clk 0:02:31]}  Ne4 {[%clk 0:02:18]} 18. Nf3 {[%clk 0:02:25]}  Kh7 {[%clk 0:02:07]} 19. Nf4 {[%clk 0:02:23]}  g5 {[%clk 0:01:41]} 20. Ne2 {[%clk 0:02:11]}  f5 {[%clk 0:01:41]} 21. Nd2 {[%clk 0:02:04]}  Ndf6 {[%clk 0:01:36]} 22. Rc2 {[%clk 0:01:51]}  Kg7 {[%clk 0:01:30]} 23. Nf3 {[%clk 0:01:47]}  Nd7 {[%clk 0:01:07]} 24. Ne1 {[%clk 0:01:35]}  Qe6 {[%clk 0:01:01]} 25. Bh3 {[%clk 0:01:33]}  Kg6 {[%clk 0:00:38]} 26. f3 {[%clk 0:01:17]}  Nef6 {[%clk 0:00:38]} 27. Bc1 {[%clk 0:01:13]}  h5 {[%clk 0:00:31]} 28. g4 {[%clk 0:01:10]}  hxg4 {[%clk 0:00:30]} 29. fxg4 {[%clk 0:01:10]}  Kg7 {[%clk 0:00:30]} 30. Qxf5 {[%clk 0:01:00]}  Qxf5 {[%clk 0:00:30]} 31. gxf5 {[%clk 0:01:01]}  Rh8 {[%clk 0:00:30]} 32. Bg2 {[%clk 0:00:59]}  Bxh2+ {[%clk 0:00:30]} 33. Kf1 {[%clk 0:00:58]}  Bd6 {[%clk 0:00:30]} 34. Nf3 {[%clk 0:00:58]}  g4 {[%clk 0:00:30]} 35. Ng5 {[%clk 0:00:56]}  Rh5 {[%clk 0:00:30]} 36. Ne6+ {[%clk 0:00:55]}  Kf7 {[%clk 0:00:30]} 37. N6f4 {[%clk 0:00:53]}  Rxf5 {[%clk 0:00:30]} 38. Bd2 {[%clk 0:00:45]}  Rg5 {[%clk 0:00:30]} 39. Rdc1 {[%clk 0:00:44]}  g3 {[%clk 0:00:28]} 40. Ng1 {[%clk 0:00:42]}  Ng4 {[%clk 0:00:26]} 41. Nf3 {[%clk 0:00:42]}  Nh2+ {[%clk 0:00:26]} 42. Ke2 {[%clk 0:00:42]}  Nxf3 {[%clk 0:00:26]} 43. Bxf3 {[%clk 0:00:42]}  Nf6 {[%clk 0:00:24]} 44. Rh1 {[%clk 0:00:38]}  Re8 {[%clk 0:00:22]} 45. Ng2 {[%clk 0:00:38]}  a5 {[%clk 0:00:21]} 46. e4 {[%clk 0:00:33]}  dxe4 {[%clk 0:00:19]} 47. Bxg5 {[%clk 0:00:32]}  exf3+ {[%clk 0:00:19]} 48. Kd1 {[%clk 0:00:33]}  fxg2 {[%clk 0:00:20]} 49. Rg1 {[%clk 0:00:33]}  Bf3+ {[%clk 0:00:20]} 50. Kc1 {[%clk 0:00:34]}  Ne4 {[%clk 0:00:20]} 51. Be3 {[%clk 0:00:33]}  Rh8 {[%clk 0:00:19]} 52. Kb2 {[%clk 0:00:32]}  Rh1 {[%clk 0:00:19]} 53. Rcc1 {[%clk 0:00:33]}  Rxg1 {[%clk 0:00:19]} 54. Rxg1 {[%clk 0:00:34]}  Ke6 {[%clk 0:00:20]} 55. Kc2 {[%clk 0:00:33]}  Kf5 {[%clk 0:00:20]} 56. Kd3 {[%clk 0:00:34]}  Ng5 {[%clk 0:00:20]} 57. Bxg5 {[%clk 0:00:26]}  Kxg5 {[%clk 0:00:21]} 58. Ke3 {[%clk 0:00:27]}  Kg4 {[%clk 0:00:21]} 59. Rc1 {[%clk 0:00:25]}  Bd5 {[%clk 0:00:21]} 0-1


[Site "https://www.chess.com"]

[Event "Titled Tuesday Blitz August 02 Early 2022"]
[White "Gareyev, Timur"]
[Black "Madaminov, Mukhiddin"]
[WhiteFideId "14200937"]
[BlackFideId "14210703"]
[WhiteElo "2559"]
[BlackElo "2011"]
[Result "1/2-1/2"]
[Round "03"]
[TimeControl "180+1"]
[Date "2022.08.02"]
[WhiteClock "0:00:07"]
[BlackClock "0:00:04"]

1. d4 {[%clk 0:03:00]}  Nf6 {[%clk 0:03:00]} 2. c4 {[%clk 0:03:00]}  g6 {[%clk 0:03:00]} 3. Nc3 {[%clk 0:03:00]}  d5 {[%clk 0:03:01]} 4. Nf3 {[%clk 0:02:49]}  Bg7 {[%clk 0:03:00]} 5. e3 {[%clk 0:02:49]}  O-O {[%clk 0:02:56]} 6. b4 {[%clk 0:02:49]}  b6 {[%clk 0:02:48]} 7. Ba3 {[%clk 0:02:47]}  c5 {[%clk 0:02:33]} 8. bxc5 {[%clk 0:02:42]}  bxc5 {[%clk 0:02:31]} 9. Bxc5 {[%clk 0:02:42]}  Na6 {[%clk 0:02:28]} 10. Ba3 {[%clk 0:02:12]}  Qa5 {[%clk 0:02:20]} 11. Bb2 {[%clk 0:02:09]}  Rb8 {[%clk 0:02:15]} 12. Qd2 {[%clk 0:02:02]}  Bf5 {[%clk 0:02:00]} 13. Nb5 {[%clk 0:01:10]}  Qxd2+ {[%clk 0:01:38]} 14. Nxd2 {[%clk 0:01:11]}  Nb4 {[%clk 0:01:31]} 15. Rc1 {[%clk 0:00:57]}  a6 {[%clk 0:01:19]} 16. Nc3 {[%clk 0:00:53]}  Nxa2 {[%clk 0:00:25]} 17. Nxa2 {[%clk 0:00:52]}  Rxb2 {[%clk 0:00:25]} 18. Nc3 {[%clk 0:00:52]}  dxc4 {[%clk 0:00:20]} 19. Nxc4 {[%clk 0:00:53]}  Rb4 {[%clk 0:00:11]} 20. Ne5 {[%clk 0:00:40]}  Rc8 {[%clk 0:00:11]} 21. Bxa6 {[%clk 0:00:40]}  Rxc3 {[%clk 0:00:07]} 22. Rxc3 {[%clk 0:00:38]}  Rb1+ {[%clk 0:00:07]} 23. Ke2 {[%clk 0:00:34]}  Ne4 {[%clk 0:00:05]} 24. Rhc1 {[%clk 0:00:13]}  Rb2+ {[%clk 0:00:03]} 25. Ke1 {[%clk 0:00:13]}  Nxc3 {[%clk 0:00:03]} 26. Rxc3 {[%clk 0:00:14]}  Bxe5 {[%clk 0:00:03]} 27. dxe5 {[%clk 0:00:14]}  Rb6 {[%clk 0:00:03]} 28. Bd3 {[%clk 0:00:14]}  Bxd3 {[%clk 0:00:03]} 29. Rxd3 {[%clk 0:00:15]}  Kg7 {[%clk 0:00:04]} 30. Ke2 {[%clk 0:00:14]}  e6 {[%clk 0:00:04]} 31. f4 {[%clk 0:00:14]}  h6 {[%clk 0:00:04]} 32. Kf3 {[%clk 0:00:14]}  h5 {[%clk 0:00:04]} 33. g3 {[%clk 0:00:14]}  Rb2 {[%clk 0:00:04]} 34. h3 {[%clk 0:00:13]}  Rh2 {[%clk 0:00:05]} 35. h4 {[%clk 0:00:14]}  Rb2 {[%clk 0:00:05]} 36. Rd7 {[%clk 0:00:13]}  Rb5 {[%clk 0:00:06]} 37. Rd2 {[%clk 0:00:13]}  Rb4 {[%clk 0:00:06]} 38. Rg2 {[%clk 0:00:13]}  Rb3 {[%clk 0:00:06]} 39. g4 {[%clk 0:00:14]}  hxg4+ {[%clk 0:00:07]} 40. Rxg4 {[%clk 0:00:15]}  Kh6 {[%clk 0:00:07]} 41. Rg5 {[%clk 0:00:15]}  Rb8 {[%clk 0:00:07]} 42. Kg4 {[%clk 0:00:15]}  Rb3 {[%clk 0:00:07]} 43. Kf3 {[%clk 0:00:15]}  Rb1 {[%clk 0:00:08]} 44. Rg2 {[%clk 0:00:15]}  Rh1 {[%clk 0:00:08]} 45. Kg3 {[%clk 0:00:15]}  Re1 {[%clk 0:00:08]} 46. Kf3 {[%clk 0:00:14]}  Rh1 {[%clk 0:00:09]} 47. Rg4 {[%clk 0:00:14]}  Kh5 {[%clk 0:00:09]} 48. Rg5+ {[%clk 0:00:13]}  Kxh4 {[%clk 0:00:09]} 49. Rg2 {[%clk 0:00:14]}  Kh5 {[%clk 0:00:07]} 50. Rd2 {[%clk 0:00:14]}  Kh6 {[%clk 0:00:07]} 51. Rd7 {[%clk 0:00:14]}  Kg7 {[%clk 0:00:08]} 52. Ke4 {[%clk 0:00:14]}  Rh4 {[%clk 0:00:08]} 53. Rc7 {[%clk 0:00:14]}  g5 {[%clk 0:00:08]} 54. Kf3 {[%clk 0:00:14]}  Kg6 {[%clk 0:00:06]} 55. Rd7 {[%clk 0:00:13]}  Rh3+ {[%clk 0:00:06]} 56. Ke4 {[%clk 0:00:12]}  g4 {[%clk 0:00:03]} 57. Rd8 {[%clk 0:00:12]}  Kg7 {[%clk 0:00:04]} 58. Rd1 {[%clk 0:00:12]}  Rg3 {[%clk 0:00:03]} 59. Rh1 {[%clk 0:00:12]}  Rg2 {[%clk 0:00:03]} 60. Rh5 {[%clk 0:00:11]}  Kg6 {[%clk 0:00:03]} 61. Rg5+ {[%clk 0:00:12]}  Kh6 {[%clk 0:00:04]} 62. Kd3 {[%clk 0:00:11]}  Kh7 {[%clk 0:00:02]} 63. e4 {[%clk 0:00:10]}  Kh6 {[%clk 0:00:03]} 64. Ke3 {[%clk 0:00:10]}  Rg3+ {[%clk 0:00:03]} 65. Ke2 {[%clk 0:00:10]}  Kh7 {[%clk 0:00:04]} 66. Rh5+ {[%clk 0:00:10]}  Kg6 {[%clk 0:00:04]} 67. Rg5+ {[%clk 0:00:11]}  Kh6 {[%clk 0:00:05]} 68. Kd2 {[%clk 0:00:10]}  Rg2+ {[%clk 0:00:05]} 69. Ke3 {[%clk 0:00:10]}  Rg3+ {[%clk 0:00:05]} 70. Ke2 {[%clk 0:00:10]}  Kh7 {[%clk 0:00:06]} 71. Rh5+ {[%clk 0:00:10]}  Kg6 {[%clk 0:00:06]} 72. Rg5+ {[%clk 0:00:10]}  Kh6 {[%clk 0:00:07]} 73. Kd2 {[%clk 0:00:10]}  Rg1 {[%clk 0:00:07]} 74. Ke3 {[%clk 0:00:10]}  Rg2 {[%clk 0:00:07]} 75. Kd3 {[%clk 0:00:10]}  Rg3+ {[%clk 0:00:07]} 76. Kd4 {[%clk 0:00:10]}  Rg1 {[%clk 0:00:06]} 77. Kc5 {[%clk 0:00:10]}  g3 {[%clk 0:00:04]} 78. Kd6 {[%clk 0:00:10]}  Rf1 {[%clk 0:00:03]} 79. Rxg3 {[%clk 0:00:08]}  Rxf4 {[%clk 0:00:03]} 80. Ke7 {[%clk 0:00:08]}  Rxe4 {[%clk 0:00:04]} 81. Kxf7 {[%clk 0:00:07]}  Rxe5 {[%clk 0:00:04]} 82. Rg6+ {[%clk 0:00:06]}  Kh5 {[%clk 0:00:04]} 83. Rxe6 {[%clk 0:00:07]}  Rxe6 {[%clk 0:00:04]} 84. Kxe6 {[%clk 0:00:07]} 1/2-1/2


[Site "https://www.chess.com"]

[Event "Titled Tuesday Blitz August 02 Early 2022"]
[White "Horobetz, Graham"]
[Black "Xu, Yi"]
[WhiteFideId "2047322"]
[BlackFideId "8605564"]
[WhiteElo "2606"]
[BlackElo "2471"]
[Result "0-1"]
[Round "03"]
[TimeControl "180+1"]
[Date "2022.08.02"]
[WhiteClock "0:00:01"]
[BlackClock "0:00:16"]

1. e4 {[%clk 0:03:00]}  c6 {[%clk 0:02:57]} 2. d4 {[%clk 0:03:00]}  d5 {[%clk 0:02:57]} 3. Nc3 {[%clk 0:03:01]}  dxe4 {[%clk 0:02:55]} 4. Nxe4 {[%clk 0:03:01]}  Nf6 {[%clk 0:02:55]} 5. Nxf6+ {[%clk 0:03:02]}  exf6 {[%clk 0:02:54]} 6. c3 {[%clk 0:03:02]}  Bd6 {[%clk 0:02:52]} 7. Bd3 {[%clk 0:03:02]}  O-O {[%clk 0:02:45]} 8. Qc2 {[%clk 0:03:02]}  h5 {[%clk 0:02:42]} 9. Ne2 {[%clk 0:03:02]}  h4 {[%clk 0:02:39]} 10. Bd2 {[%clk 0:02:53]}  Nd7 {[%clk 0:02:37]} 11. h3 {[%clk 0:02:51]}  Re8 {[%clk 0:02:34]} 12. O-O-O {[%clk 0:02:48]}  Nf8 {[%clk 0:02:28]} 13. Rdg1 {[%clk 0:02:37]}  Be6 {[%clk 0:02:27]} 14. g3 {[%clk 0:02:36]}  Bd5 {[%clk 0:02:13]} 15. gxh4 {[%clk 0:01:44]}  Bxh1 {[%clk 0:02:09]} 16. Rxh1 {[%clk 0:01:45]}  Qa5 {[%clk 0:01:59]} 17. Kb1 {[%clk 0:01:35]}  Qh5 {[%clk 0:01:58]} 18. Ng3 {[%clk 0:01:27]}  Qf3 {[%clk 0:01:41]} 19. Be4 {[%clk 0:00:53]}  Qxf2 {[%clk 0:01:40]} 20. Nh5 {[%clk 0:00:49]}  Qxh4 {[%clk 0:01:31]} 21. Bf3 {[%clk 0:00:10]}  Ne6 {[%clk 0:01:02]} 22. Rg1 {[%clk 0:00:09]}  Ng5 {[%clk 0:01:01]} 23. Bg4 {[%clk 0:00:08]}  Re7 {[%clk 0:00:51]} 24. Qf5 {[%clk 0:00:07]}  Rae8 {[%clk 0:00:48]} 25. Nxf6+ {[%clk 0:00:07]}  gxf6 {[%clk 0:00:47]} 26. Qxf6 {[%clk 0:00:07]}  Re1+ {[%clk 0:00:42]} 27. Rxe1 {[%clk 0:00:05]}  Rxe1+ {[%clk 0:00:42]} 28. Kc2 {[%clk 0:00:05]}  Be7 {[%clk 0:00:33]} 29. Qf5 {[%clk 0:00:03]}  Re6 {[%clk 0:00:31]} 30. Qf4 {[%clk 0:00:02]}  Rf6 {[%clk 0:00:24]} 31. Qb8+ {[%clk 0:00:02]}  Bf8 {[%clk 0:00:21]} 32. Qxb7 {[%clk 0:00:03]}  Ne4 {[%clk 0:00:20]} 33. Be3 {[%clk 0:00:01]}  Qg3 {[%clk 0:00:16]} 0-1


[Site "https://www.chess.com"]